bitfinex-derivatives/quotes_BTCF0:USTF0_20250424
["timestamp","ask_amount","ask_price","bid_price","bid_amount"]
[1745487499678,0.1812217,92401.0,92400.0,0.1]
[1745487499981,0.6822217,92401.0,92400.0,0.2082229]
[1745487500671,0.6832217,92401.0,92400.0,0.2082229]
[1745487502582,0.502,92401.0,92400.0,0.2082229]
[1745487503086,0.502,92401.0,92400.0,0.3802229]
[1745487503285,0.502,92401.0,92400.0,0.4521229]
[1745487503471,0.002,92401.0,92400.0,0.4521229]
[1745487505785,0.001,92401.0,92400.0,0.4521229]
[1745487506784,0.0365,92402.0,92401.0,0.1082217]
[1745487507188,0.0365,92402.0,92401.0,0.3541217]
[1745487508286,0.0365,92402.0,92401.0,0.3551217]
[1745487508994,0.0365,92402.0,92401.0,0.3561217]
[1745487509790,0.0365,92402.0,92401.0,0.3551217]
[1745487509996,0.0365,92402.0,92401.0,0.3561217]
[1745487513700,0.0365,92402.0,92401.0,0.174]
[1745487513701,0.1447206,92402.0,92401.0,0.174]
[1745487514195,0.2151206,92402.0,92401.0,0.002]
[1745487514394,0.2151206,92402.0,92401.0,0.1102217]
[1745487514597,0.1069,92402.0,92401.0,0.1102217]
[1745487514799,0.2151206,92402.0,92401.0,0.1102217]
[1745487514992,0.1069,92402.0,92401.0,0.1092217]
[1745487515187,0.1079,92402.0,92401.0,0.1092217]
[1745487515592,0.1069,92402.0,92401.0,0.1092217]
[1745487515789,0.1079,92402.0,92401.0,0.1092217]
[1745487515994,0.0734,92402.0,92401.0,0.1424217]
[1745487516189,0.0734,92402.0,92401.0,0.2802217]
[1745487516394,0.1826206,92402.0,92401.0,0.2802217]
[1745487516796,0.0734,92402.0,92401.0,0.2802217]
[1745487517002,0.0744,92402.0,92401.0,0.2802217]
[1745487517499,0.0734,92402.0,92401.0,0.2802217]
[1745487517705,0.0744,92402.0,92401.0,0.2802217]
[1745487518094,0.1826206,92402.0,92401.0,0.2802217]
[1745487518601,0.0744,92402.0,92401.0,0.2802217]
[1745487519602,0.1816206,92402.0,92401.0,0.2802217]
[1745487519799,0.1806206,92402.0,92401.0,0.2802217]
[1745487521194,0.1816206,92402.0,92401.0,0.1082217]
[1745487521394,0.1826206,92402.0,92401.0,0.1082217]
[1745487521600,0.1816206,92402.0,92401.0,0.1082217]
[1745487522103,0.0734,92402.0,92401.0,0.1082217]
[1745487522293,0.1826206,92402.0,92401.0,0.1082217]
[1745487522692,0.1816206,92402.0,92401.0,0.1082217]
[1745487522902,0.1806206,92402.0,92401.0,0.1082217]
[1745487524798,0.1816206,92402.0,92401.0,0.1082217]
[1745487525608,0.5424206,92402.0,92401.0,0.1082217]
[1745487526298,0.5414206,92402.0,92401.0,0.1092217]
[1745487526997,0.5424206,92402.0,92401.0,0.1082217]
[1745487527601,0.5434206,92402.0,92401.0,0.1082217]
[1745487527995,0.5424206,92402.0,92401.0,0.1082217]
[1745487529908,0.5414206,92402.0,92401.0,0.1082217]
[1745487530094,0.5424206,92402.0,92401.0,0.1082217]
[1745487530300,0.5424206,92402.0,92400.0,0.1]
[1745487530301,0.1082217,92401.0,92400.0,0.2082229]
[1745487530695,0.1786217,92401.0,92400.0,0.2082229]
[1745487532205,0.6796217,92401.0,92400.0,0.2082229]
[1745487532409,0.6806217,92401.0,92400.0,0.2082229]
[1745487533909,0.6796217,92401.0,92400.0,0.2082229]
[1745487534103,0.6826217,92401.0,92400.0,0.2082229]
[1745487534605,0.7367331,92401.0,92398.0,0.0541121]
[1745487534904,0.7367331,92401.0,92397.0,0.0541129]
[1745487534905,0.1082264,92398.0,92397.0,0.1082261]
[1745487535408,0.4337,92398.0,92381.0,0.0541223]
[1745487535709,0.469044,92382.0,92381.0,0.2164846]
[1745487536604,0.4308,92382.0,92381.0,0.2164846]
[1745487537207,0.4308,92382.0,92381.0,0.3884846]
[1745487537403,0.4308,92382.0,92381.0,0.3904846]
[1745487538022,0.4308,92382.0,92381.0,0.3924846]
[1745487538515,0.4308,92382.0,92381.0,0.3904846]
[1745487538808,0.4308,92382.0,92381.0,0.3924846]
[1745487539811,0.4308,92382.0,92381.0,0.3904846]
[1745487540007,0.4308,92382.0,92381.0,0.3914846]
[1745487540212,0.4308,92382.0,92381.0,0.3934846]
[1745487542313,0.539044,92382.0,92381.0,0.2214846]
[1745487543416,0.4308,92382.0,92381.0,0.2214846]
[1745487546617,0.07,92382.0,92381.0,0.2214846]
[1745487556221,0.07,92382.0,92381.0,0.3934846]
[1745487556519,0.4690289,92395.0,92394.0,0.1082299]
[1745487556726,0.3608,92395.0,92394.0,0.1082299]
[1745487557115,0.3608,92395.0,92394.0,0.2802299]
[1745487558325,0.4294,92395.0,92394.0,0.2802299]
[1745487558921,0.3948,92395.0,92394.0,0.2802299]
[1745487559417,0.3958,92395.0,92394.0,0.3424299]
[1745487563918,0.5040288,92395.0,92394.0,0.2802299]
[1745487564117,0.5040288,92395.0,92394.0,0.1082299]
[1745487566230,0.1623687,92384.0,92383.0,0.0541191]
[1745487566434,0.2164911,92384.0,92383.0,0.0541191]
[1745487567223,0.3178911,92384.0,92383.0,0.0541191]
[1745487567424,0.2096448,92384.0,92383.0,0.0541191]
[1745487568232,0.2096448,92384.0,92383.0,0.0551191]
[1745487569043,0.2106448,92384.0,92383.0,0.0541191]
[1745487570638,0.2106448,92384.0,92380.0,0.0541231]
[1745487570841,0.1024,92384.0,92383.0,0.1082428]
[1745487571142,0.2106416,92384.0,92383.0,0.1082428]
[1745487571637,0.1740416,92384.0,92383.0,0.1082428]
[1745487571837,0.0668,92384.0,92383.0,0.1082428]
[1745487572228,0.0668,92384.0,92383.0,0.2802428]
[1745487572432,0.0658,92384.0,92383.0,0.3417428]
[1745487572734,0.0668,92384.0,92383.0,0.3417428]
[1745487574129,0.0343,92384.0,92383.0,0.3417428]
[1745487575440,0.0343,92384.0,92383.0,0.3427428]
[1745487578038,0.0343,92384.0,92383.0,0.3417428]
[1745487578242,0.0343,92384.0,92383.0,0.3427428]
[1745487578635,0.0343,92384.0,92383.0,0.3417428]
[1745487578836,0.0343,92384.0,92383.0,0.3427428]
[1745487579748,0.0343,92384.0,92383.0,0.3417428]
[1745487579949,0.0343,92384.0,92383.0,0.3427428]
[1745487580951,0.3608,92395.0,92394.0,0.1082299]
[1745487582044,0.3608,92395.0,92394.0,0.1384299]
[1745487582345,0.3608,92395.0,92394.0,0.3104299]
[1745487582544,0.3618,92395.0,92394.0,0.3104299]
[1745487583541,0.395,92395.0,92394.0,0.3104299]
[1745487583746,0.397,92395.0,92394.0,0.3104299]
[1745487584139,0.4287,92395.0,92394.0,0.3104299]
[1745487584540,0.4277,92395.0,92394.0,0.3104299]
[1745487584942,0.4267,92395.0,92394.0,0.3104299]
[1745487585150,0.0659,92395.0,92394.0,0.3104299]
[1745487591043,0.0659,92395.0,92394.0,0.2802299]
[1745487591939,0.1741288,92395.0,92394.0,0.2802299]
[1745487592141,0.0659,92395.0,92394.0,0.2802299]
[1745487593640,0.0659,92395.0,92394.0,0.3139299]
[1745487594853,0.1741288,92395.0,92394.0,0.3139299]
[1745487595055,0.0659,92395.0,92394.0,0.3139299]
[1745487596549,0.0649,92395.0,92394.0,0.3139299]
[1745487596946,0.1731288,92395.0,92394.0,0.172]
[1745487597145,0.1731288,92395.0,92394.0,0.1082299]
[1745487598352,0.1761288,92395.0,92394.0,0.1082299]
[1745487599752,0.1741288,92395.0,92394.0,0.1082299]
[1745487599958,0.1761288,92395.0,92394.0,0.1082299]
[1745487600659,0.0679,92395.0,92394.0,0.1082299]
[1745487600854,0.1761288,92395.0,92394.0,0.1082299]
[1745487603963,0.1751288,92395.0,92394.0,0.1082299]
[1745487604562,0.1761288,92395.0,92394.0,0.1082299]
[1745487605253,0.0679,92395.0,92394.0,0.1082299]
[1745487606149,0.0679,92395.0,92394.0,0.1422299]
[1745487606348,0.0659,92395.0,92394.0,0.1422299]
[1745487606554,0.0679,92395.0,92394.0,0.1422299]
[1745487607258,0.0679,92395.0,92394.0,0.3142299]
[1745487607855,0.1761288,92395.0,92394.0,0.3142299]
[1745487608159,0.1761288,92395.0,92394.0,0.1422299]
[1745487609155,0.0679,92395.0,92394.0,0.3142299]
[1745487611158,0.0659,92395.0,92394.0,0.1422299]
[1745487611361,0.0669,92395.0,92394.0,0.1422299]
[1745487612157,0.0659,92395.0,92394.0,0.1422299]
[1745487612361,0.0669,92395.0,92394.0,0.1422299]
[1745487612751,0.0659,92395.0,92394.0,0.1422299]
[1745487613456,0.0649,92395.0,92394.0,0.1422299]
[1745487614170,0.0649,92395.0,92394.0,0.3142299]
[1745487624882,0.0782,92413.0,92401.0,0.1082217]
[1745487625177,0.0353,92404.0,92403.0,0.1082194]
[1745487625373,0.0354,92412.0,92407.0,0.1082147]
[1745487625568,0.0353,92409.0,92407.0,0.1082147]
[1745487625766,0.0353,92409.0,92407.0,0.1417147]
[1745487626269,0.0353,92409.0,92408.0,0.1082135]
[1745487626467,0.3961,92409.0,92408.0,0.1417135]
[1745487628079,0.3991,92409.0,92408.0,0.1417135]
[1745487628577,0.4011,92409.0,92408.0,0.1417135]
[1745487628770,0.4011,92409.0,92408.0,0.15234937]
[1745487628969,0.3991,92409.0,92408.0,0.15234937]
[1745487629169,0.3971,92409.0,92408.0,0.15234937]
[1745487629676,0.0363,92409.0,92408.0,0.15234937]
[1745487630277,0.001,92409.0,92408.0,0.18614937]
[1745487631073,0.001,92409.0,92408.0,0.35814937]
[1745487631789,0.0696,92413.0,92412.0,0.1082088]
[1745487632179,0.0696,92413.0,92412.0,0.2802088]
[1745487632878,0.0696,92413.0,92412.0,0.2812088]
[1745487633976,0.0696,92413.0,92412.0,0.3170088]
[1745487636072,0.0696,92413.0,92412.0,0.1450088]
[1745487641175,0.0696,92413.0,92412.0,0.3170088]
[1745487642084,0.0696,92413.0,92412.0,0.1450088]
[1745487651489,0.0696,92413.0,92412.0,0.1785088]
[1745487651785,0.0696,92413.0,92412.0,0.2121088]
[1745487652489,0.0696,92413.0,92412.0,0.1785088]
[1745487655292,0.0696,92413.0,92412.0,0.1450088]
[1745487676997,0.0696,92413.0,92412.0,0.1802088]
[1745487677199,0.00826937,92420.0,92412.0,0.1802088]
[1745487677200,0.3608,92429.0,92420.0,0.0540993]
[1745487677405,0.0335,92426.0,92425.0,0.1081936]
[1745487677800,0.0349,92439.0,92438.0,0.1081784]
[1745487679009,0.0684,92439.0,92438.0,0.1081784]
[1745487679309,0.0744,92439.0,92438.0,0.11976119]
[1745487680408,0.1106,92439.0,92438.0,0.11976119]
[1745487680602,0.1156,92439.0,92438.0,0.11976119]
[1745487681010,0.1106,92439.0,92438.0,0.1091784]
[1745487681202,0.1146,92439.0,92438.0,0.1091784]
[1745487681601,0.1106,92439.0,92438.0,0.1091784]
[1745487681811,0.12274611,92439.0,92438.0,0.1091784]
[1745487682010,0.12274611,92439.0,92438.0,0.11989784]
[1745487682309,0.11974611,92439.0,92438.0,0.1081784]
[1745487684500,0.11574611,92439.0,92438.0,0.1081784]
[1745487684704,0.11874611,92439.0,92438.0,0.1439784]
[1745487684901,0.11774611,92439.0,92438.0,0.1439784]
[1745487686011,0.11774611,92439.0,92438.0,0.15506167]
[1745487686215,0.11774611,92439.0,92438.0,0.11926167]
[1745487686712,0.11774611,92439.0,92438.0,0.1081784]
[1745487688409,0.11774611,92439.0,92438.0,0.1420784]
[1745487714347,0.11774611,92439.0,92438.0,0.1756784]
[1745487714735,0.01314611,92439.0,92438.0,0.1756784]
[1745487715036,0.3608,92451.0,92450.0,0.1081644]
[1745487715427,0.3944,92451.0,92450.0,0.1081644]
[1745487715731,0.36883123,92451.0,92450.0,0.1081644]
[1745487716040,0.36883123,92451.0,92450.0,0.1785644]
[1745487716227,0.37383123,92451.0,92450.0,0.3515644]
[1745487716921,0.3658,92451.0,92450.0,0.3515644]
[1745487717333,0.3698,92451.0,92450.0,0.3515644]
[1745487720138,0.3698,92451.0,92450.0,0.1427644]
[1745487720339,0.4779632,92451.0,92450.0,0.1091644]
[1745487721040,0.3698,92451.0,92450.0,0.1091644]
[1745487721242,0.4779632,92451.0,92450.0,0.1091644]
[1745487721741,0.3698,92451.0,92450.0,0.1091644]
[1745487722040,0.4779632,92451.0,92450.0,0.1091644]
[1745487722425,0.3698,92451.0,92450.0,0.1091644]
[1745487726941,0.4045,92451.0,92450.0,0.1091644]
[1745487728043,0.4395,92451.0,92450.0,0.1091644]
[1745487729044,0.4395,92451.0,92450.0,0.1444644]
[1745487729846,0.4395,92451.0,92450.0,0.1091644]
[1745487730843,0.4395,92451.0,92450.0,0.1444644]
[1745487733948,0.0787,92451.0,92450.0,0.1444644]
[1745487737451,0.1868632,92451.0,92450.0,0.1444644]
[1745487738054,0.0787,92451.0,92450.0,0.1444644]
[1745487738446,0.0787,92451.0,92450.0,0.1795644]
[1745487738645,0.0437,92451.0,92450.0,0.2134644]
[1745487740150,0.0437,92451.0,92450.0,0.3854644]
[1745487740546,0.009,92451.0,92450.0,0.3854644]
[1745487743251,0.009,92451.0,92450.0,0.2134644]
[1745487753360,0.0436,92451.0,92450.0,0.2134644]
[1745487754756,0.0436,92451.0,92450.0,0.1444644]
[1745487754956,0.0771,92451.0,92450.0,0.1444644]
[1745487755451,0.0771,92451.0,92450.0,0.1799644]
[1745487761862,0.0771,92451.0,92450.0,0.1444644]
[1745487763269,0.0771,92451.0,92441.0,0.0688]
[1745487763270,0.796064,92451.0,92439.0,0.16383295]
[1745487763471,0.3608,92440.0,92439.0,0.16383295]
[1745487763764,0.1081843,92433.0,92426.0,0.1081923]
[1745487763965,0.1081843,92433.0,92423.0,0.27119217]
[1745487764161,0.1081948,92424.0,92423.0,0.27119217]
[1745487764363,0.1081948,92424.0,92423.0,0.37938817]
[1745487764364,0.4689948,92424.0,92423.0,0.37938817]
[1745487764563,0.5771908,92424.0,92423.0,0.37938817]
[1745487765567,0.5771908,92424.0,92423.0,0.38038817]
[1745487765866,0.5771908,92424.0,92423.0,0.109196]
[1745487767059,0.4689948,92424.0,92423.0,0.108196]
[1745487767266,0.5791908,92424.0,92423.0,0.002]
[1745487767464,0.5791908,92424.0,92423.0,0.110196]
[1745487768766,0.5771908,92424.0,92423.0,0.110196]
[1745487769160,0.4689948,92424.0,92423.0,0.110196]
[1745487770365,0.4689948,92424.0,92423.0,0.108196]
[1745487771262,0.3608,92424.0,92423.0,0.108196]
[1745487772068,0.3608,92424.0,92423.0,0.178896]
[1745487772574,0.1059,92426.0,92425.0,0.1081936]
[1745487772774,0.07744,92440.0,92432.0,0.1081854]
[1745487772966,0.0347,92439.0,92438.0,0.1081784]
[1745487773168,0.1428772,92439.0,92438.0,0.1081784]
[1745487773770,0.0347,92439.0,92438.0,0.1081784]
[1745487773967,0.07744,92440.0,92439.0,0.1081772]
[1745487774167,0.3608,92443.0,92441.0,0.1081749]
[1745487774168,0.0705,92442.0,92441.0,0.1081749]
[1745487774572,0.1786737,92442.0,92441.0,0.1081749]
[1745487775876,0.1816737,92442.0,92441.0,0.1081749]
[1745487776473,0.0735,92442.0,92441.0,0.1081749]
[1745487776868,0.0378,92442.0,92441.0,0.1081749]
[1745487777679,0.0368,92442.0,92441.0,0.1081749]
[1745487777881,0.0378,92442.0,92441.0,0.1081749]
[1745487778276,0.003,92442.0,92441.0,0.1081749]
[1745487778581,0.00813255,92455.0,92454.0,0.1081597]
[1745487778777,0.108162,92453.0,92452.0,0.1081611]
[1745487778980,0.0540844,92447.0,92444.0,0.21634]
[1745487779181,0.1622514,92448.0,92447.0,0.1081679]
[1745487779384,0.0540835,92448.0,92447.0,0.1081679]
[1745487779577,0.0540823,92450.0,92449.0,0.1081655]
[1745487780385,0.108163,92452.0,92451.0,0.108162]
[1745487780984,0.01100859,92455.0,92454.0,0.1081597]
[1745487781189,0.003,92455.0,92454.0,0.1081597]
[1745487781681,0.3608,92456.0,92455.0,0.1081585]
[1745487781895,0.36907078,92456.0,92455.0,0.1081585]
[1745487783878,0.37207078,92456.0,92455.0,0.1081585]
[1745487784679,0.37607078,92456.0,92455.0,0.1081585]
[1745487786491,0.48422808,92456.0,92455.0,0.1081585]
[1745487786998,0.1081632,92451.0,92450.0,0.1081625]
[1745487787486,0.0540825,92450.0,92435.0,0.0540906]
[1745487787688,0.0540886,92440.0,92439.0,0.2163498]
[1745487788394,0.0344,92441.0,92440.0,0.1081761]
[1745487789480,0.0344,92441.0,92440.0,0.1434761]
[1745487790591,0.3608,92444.0,92443.0,0.1081726]
[1745487791183,0.4689714,92444.0,92443.0,0.1081726]
[1745487791781,0.4699714,92444.0,92443.0,0.1081726]
[1745487792984,0.4709714,92444.0,92443.0,0.1081726]
[1745487797897,0.3628,92444.0,92443.0,0.1081726]
[1745487798095,0.3987,92444.0,92443.0,0.1081726]
[1745487798790,0.3987,92444.0,92443.0,0.1444726]
[1745487798990,0.3987,92444.0,92443.0,0.1786726]
[1745487799487,0.3628,92444.0,92443.0,0.194243]
[1745487799694,0.3628,92444.0,92443.0,0.1786726]
[1745487799995,0.3628,92444.0,92443.0,0.19424304]
[1745487803602,0.3994,92444.0,92443.0,0.19424304]
[1745487804101,0.0386,92444.0,92443.0,0.19424304]
[1745487804301,0.0386,92444.0,92443.0,0.19431502]
[1745487804501,0.3994,92444.0,92443.0,0.19431502]
[1745487807500,0.0386,92444.0,92443.0,0.19431502]
[1745487807903,0.0386,92444.0,92443.0,0.1945168]
[1745487809494,0.3994,92444.0,92443.0,0.1945168]
[1745487809804,0.3994,92444.0,92443.0,0.19454878]
[1745487810403,0.0386,92444.0,92443.0,0.19454878]
[1745487812008,0.0386,92444.0,92443.0,0.1786726]
[1745487814112,0.002,92444.0,92443.0,0.1786726]
[1745487814998,0.002,92444.0,92443.0,0.19425946]
[1745487815407,0.002,92444.0,92443.0,0.19426316]
[1745487817204,0.3985,92444.0,92443.0,0.16006316]
[1745487817409,0.4337,92444.0,92443.0,0.16006316]
[1745487817998,0.4337,92444.0,92443.0,0.1444726]
[1745487819512,0.4337,92444.0,92443.0,0.1081726]
[1745487820513,0.4679,92444.0,92443.0,0.1081726]
[1745487820713,0.5760714,92444.0,92443.0,0.1081726]
[1745487822009,0.5760714,92444.0,92436.0,0.1081791]
[1745487822010,0.1081796,92437.0,92436.0,0.1081791]
[1745487822218,0.4689796,92437.0,92436.0,0.1081791]
[1745487822904,0.5389796,92437.0,92436.0,0.1081791]
[1745487823809,0.5389796,92437.0,92436.0,0.1091791]
[1745487824305,0.5389796,92437.0,92436.0,0.1101791]
[1745487828809,0.5389796,92437.0,92436.0,0.1101807]
[1745487829014,0.108196,92423.0,92422.0,0.1427912]
[1745487829208,0.468996,92423.0,92422.0,0.1427912]
[1745487829516,0.0540997,92421.0,92420.0,0.1081985]
[1745487830012,0.1230997,92421.0,92420.0,0.1081985]
[1745487830313,0.1230997,92421.0,92420.0,0.12391847]
[1745487830513,0.1230997,92421.0,92420.0,0.1081985]
[1745487831213,0.1230997,92421.0,92420.0,0.1101985]
[1745487833912,0.1230997,92421.0,92420.0,0.1091985]
[1745487834117,0.1230997,92421.0,92420.0,0.12674096]
[1745487834316,0.1230997,92421.0,92420.0,0.12574096]
[1745487834512,0.1230997,92421.0,92420.0,0.12674096]
[1745487834712,0.1230997,92421.0,92420.0,0.12574096]
[1745487834921,0.1230997,92421.0,92420.0,0.12474096]
[1745487836215,0.1230997,92421.0,92420.0,0.1091985]
[1745487836518,0.1230997,92421.0,92420.0,0.1101985]
[1745487837519,0.1230997,92421.0,92420.0,0.1091985]
[1745487837720,0.1230997,92421.0,92420.0,0.1464985]
[1745487838427,0.1230997,92421.0,92420.0,0.1101985]
[1745487840923,0.1230997,92421.0,92420.0,0.1091985]
[1745487841111,0.1230997,92421.0,92420.0,0.1101985]
[1745487841617,0.1230997,92421.0,92420.0,0.1438985]
[1745487841813,0.069,92421.0,92420.0,0.2152985]
[1745487842113,0.1431983,92421.0,92420.0,0.23170452]
[1745487843616,0.1431983,92421.0,92420.0,0.23070452]
[1745487843810,0.1431983,92421.0,92420.0,0.23170452]
[1745487844214,0.1431983,92421.0,92420.0,0.23133992]
[1745487844419,0.1431983,92421.0,92420.0,0.23033992]
[1745487844616,0.1431983,92421.0,92420.0,0.23233992]
[1745487846823,0.035,92421.0,92420.0,0.23233992]
[1745487847421,0.4148984,92423.0,92422.0,0.1081971]
[1745487847622,0.4148984,92423.0,92422.0,0.12423852]
[1745487849637,0.4148984,92423.0,92422.0,0.12523852]
[1745487849833,0.4148984,92423.0,92422.0,0.12623852]
[1745487850230,0.3608,92423.0,92422.0,0.12623852]
[1745487852232,0.3939,92423.0,92422.0,0.12623852]
[1745487855442,0.3939,92423.0,92422.0,0.12658981]
[1745487858138,0.3939,92423.0,92422.0,0.19528981]
[1745487860247,0.502096,92423.0,92422.0,0.19528981]
[1745487860545,0.3939,92423.0,92422.0,0.19528981]
[1745487860933,0.3939,92423.0,92422.0,0.1951902]
[1745487862136,0.4271,92423.0,92422.0,0.1951902]
[1745487863341,0.3608,92423.0,92422.0,0.1951902]
[1745487864639,0.3608,92423.0,92422.0,0.19503794]
[1745487865446,0.468996,92423.0,92422.0,0.19503794]
[1745487866454,0.3608,92423.0,92422.0,0.19503794]
[1745487867055,0.4287,92423.0,92422.0,0.19503794]
[1745487867450,0.536896,92423.0,92422.0,0.16073794]
[1745487867955,0.4287,92423.0,92422.0,0.16073794]
[1745487868739,0.4287,92423.0,92422.0,0.1445971]
[1745487868945,0.4287,92423.0,92422.0,0.16075415]
[1745487870057,0.536896,92423.0,92422.0,0.12635415]
[1745487870357,0.536896,92423.0,92422.0,0.01813727]
[1745487870656,0.536896,92423.0,92422.0,0.12633437]
[1745487871649,0.536896,92423.0,92422.0,0.01813727]
[1745487871840,0.536896,92423.0,92422.0,0.12633437]
[1745487872442,0.536896,92423.0,92422.0,0.1101971]
[1745487872954,1.036896,92423.0,92422.0,0.1101971]
[1745487876341,1.036896,92423.0,92422.0,0.12606821]
[1745487876747,1.036896,92423.0,92422.0,0.01787111]
[1745487877053,1.036896,92423.0,92422.0,0.002]
[1745487877948,1.036896,92423.0,92422.0,0.1101971]
[1745487878148,1.036896,92423.0,92422.0,0.002]
[1745487878554,1.036896,92423.0,92400.0,0.08609468]
[1745487878555,1.0369,92423.0,92402.0,0.0541099]
[1745487878747,0.4690252,92403.0,92402.0,0.0541099]
[1745487879546,0.5396252,92403.0,92402.0,0.0551099]
[1745487880254,0.5396252,92403.0,92402.0,0.0561099]
[1745487880652,0.5396252,92403.0,92402.0,0.0551099]
[1745487880849,0.5396252,92403.0,92402.0,0.0561099]
[1745487881242,0.5396252,92403.0,92402.0,0.0879099]
[1745487881447,0.5396252,92403.0,92402.0,0.0909099]
[1745487882049,0.54762344,92403.0,92402.0,0.0909099]
[1745487882956,0.54762344,92403.0,92402.0,0.0889099]
[1745487883154,0.54762344,92403.0,92402.0,0.0919099]
[1745487886157,0.54762344,92403.0,92402.0,0.0879099]
[1745487886362,0.54762344,92403.0,92402.0,0.1214099]
[1745487886866,0.54762344,92403.0,92402.0,0.1224099]
[1745487888564,0.18682344,92403.0,92402.0,0.1224099]
[1745487888866,0.54762344,92403.0,92402.0,0.1234099]
[1745487889564,0.54762344,92403.0,92402.0,0.1224099]
[1745487889768,0.54762344,92403.0,92402.0,0.1234099]
[1745487890269,0.54762344,92403.0,92402.0,0.1224099]
[1745487890564,0.54762344,92403.0,92402.0,0.13861729]
[1745487891556,0.18682344,92403.0,92402.0,0.13861729]
[1745487891761,0.54762344,92403.0,92402.0,0.13861729]
[1745487892365,0.54762344,92403.0,92402.0,0.13958824]
[1745487893868,0.54762344,92403.0,92402.0,0.13758824]
[1745487894172,0.54762344,92403.0,92402.0,0.13958824]
[1745487896166,0.54762344,92403.0,92402.0,0.13953733]
[1745487900777,0.43939824,92403.0,92402.0,0.13953733]
[1745487901074,0.43939824,92403.0,92402.0,0.17333733]
[1745487901278,0.54761764,92403.0,92402.0,0.13953733]
[1745487901575,0.54761764,92403.0,92402.0,0.05192743]
[1745487902068,0.1082323,92394.0,92393.0,0.2164568]
[1745487902374,0.4690323,92394.0,92393.0,0.2164568]
[1745487902964,0.5386323,92394.0,92393.0,0.2164568]
[1745487903671,0.5386323,92394.0,92393.0,0.2184568]
[1745487903868,0.5396323,92394.0,92393.0,0.2224568]
[1745487904075,0.5396323,92394.0,92393.0,0.2581568]
[1745487904571,0.5386323,92394.0,92393.0,0.2561568]
[1745487905371,0.5386323,92394.0,92393.0,0.2551568]
[1745487906169,0.5386323,92394.0,92393.0,0.2531568]
[1745487906469,0.5386323,92394.0,92393.0,0.2541568]
[1745487906870,0.5386323,92394.0,92393.0,0.2531568]
[1745487907070,0.5386323,92394.0,92393.0,0.2551568]
[1745487907473,0.3608,92394.0,92393.0,0.2551568]
[1745487907669,0.3608,92394.0,92393.0,0.2884568]
[1745487908076,0.3608,92394.0,92393.0,0.4604568]
[1745487909976,0.3608,92394.0,92393.0,0.4614568]
[1745487910575,0.3608,92394.0,92393.0,0.4574568]
[1745487910779,0.3608,92394.0,92393.0,0.4624568]
[1745487911180,0.3608,92394.0,92393.0,0.4604568]
[1745487911478,0.3608,92394.0,92393.0,0.4634568]
[1745487913880,0.3608,92394.0,92393.0,0.4624568]
[1745487914385,0.3608,92394.0,92393.0,0.4614568]
[1745487922087,0.4690299,92394.0,92393.0,0.2561568]
[1745487922292,0.4690299,92394.0,92393.0,0.1122293]
[1745487922887,0.5373299,92394.0,92393.0,0.1122293]
[1745487923885,0.5373299,92394.0,92393.0,0.1102293]
[1745487924083,0.5373299,92394.0,92393.0,0.1112293]
[1745487927482,0.8981299,92394.0,92393.0,0.1112293]
[1745487928493,1.3981299,92394.0,92393.0,0.1112293]
[1745487930394,1.3981299,92394.0,92393.0,0.1092293]
[1745487930584,1.3981299,92394.0,92393.0,0.1112293]
[1745487931389,1.4322299,92394.0,92393.0,0.1112293]
[1745487932400,1.0714299,92394.0,92393.0,0.1112293]
[1745487935496,0.9632,92394.0,92393.0,0.1112293]
[1745487935898,1.0714299,92394.0,92393.0,0.1112293]
[1745487936284,0.5714299,92394.0,92393.0,0.1112293]
[1745487954407,0.5039299,92394.0,92393.0,0.1112293]
[1745487955520,0.4690299,92394.0,92393.0,0.1112293]
[1745487955812,0.3608,92394.0,92393.0,0.1112293]
[1745487956308,0.4690299,92394.0,92393.0,0.1112293]
[1745487958413,0.5025299,92394.0,92393.0,0.1112293]
[1745487963315,0.5385299,92394.0,92393.0,0.1112293]
[1745487963614,0.5730299,92394.0,92393.0,0.1112293]
[1745487971716,0.5730299,92394.0,92393.0,0.003]
[1745487971921,0.1623636,92386.0,92385.0,0.1623568]
[1745487972122,0.5231636,92386.0,92385.0,0.1623568]
[1745487972811,0.5231636,92386.0,92385.0,0.2164766]
[1745487973010,0.5241636,92386.0,92385.0,0.2204766]
[1745487973418,0.5241636,92386.0,92385.0,0.2234766]
[1745487974712,0.53517564,92386.0,92385.0,0.2234766]
[1745487976328,0.5241636,92386.0,92385.0,0.3954766]
[1745487976914,0.5922636,92386.0,92385.0,0.3954766]
[1745487977114,0.5922636,92386.0,92385.0,0.2234766]
[1745487982515,0.5381428,92386.0,92380.0,0.02367]
[1745487982721,0.5381428,92386.0,92366.0,0.16347324]
[1745487982722,0.1082616,92367.0,92366.0,0.16347324]
[1745487982917,0.4690616,92367.0,92366.0,0.16347324]
[1745487983226,0.4690616,92367.0,92366.0,0.33547324]
[1745487983427,0.4690616,92367.0,92366.0,0.40377324]
[1745487983626,0.5391616,92367.0,92366.0,0.36967324]
[1745487983823,0.5391616,92367.0,92366.0,0.17308264]
[1745487984026,0.5391616,92367.0,92264.0,9.189e-05]
[1745487984027,0.0541351,92360.0,92349.0,0.21873576]
[1745487984328,0.1082803,92351.0,92350.0,0.1082815]
[1745487984821,0.1783803,92351.0,92350.0,0.1424815]
[1745487985022,0.1783803,92351.0,92350.0,0.1082815]
[1745487985817,0.1793803,92351.0,92350.0,0.1474815]
[1745487986517,0.18664153,92351.0,92350.0,0.1434815]
[1745487986717,0.18764153,92351.0,92350.0,0.1464815]
[1745487986920,0.18864153,92351.0,92350.0,0.1464815]
[1745487987519,0.18864153,92351.0,92350.0,0.1112815]
[1745487988521,0.18864153,92351.0,92350.0,0.1428815]
[1745487988522,0.18764153,92351.0,92350.0,0.1428815]
[1745487988718,0.18864153,92351.0,92350.0,0.1438815]
[1745487989735,0.18764153,92351.0,92350.0,0.1448815]
[1745487991232,0.18664153,92351.0,92350.0,0.1438815]
[1745487991425,0.18764153,92351.0,92350.0,0.1468815]
[1745487992935,0.18764153,92351.0,92350.0,0.1458815]
[1745487993129,0.18764153,92351.0,92350.0,0.1468815]
[1745487993734,0.18764153,92351.0,92350.0,0.1122815]
[1745487994222,0.18764153,92351.0,92348.0,0.1624239]
[1745487994223,0.44016123,92351.0,92348.0,0.1624228]
[1745487994425,0.51244153,92351.0,92350.0,0.1082815]
[1745487995135,0.54724153,92351.0,92350.0,0.3521815]
[1745487995435,0.00926123,92351.0,92350.0,0.3521815]
[1745487995936,0.01126123,92351.0,92350.0,0.3521815]
[1745487996234,0.01226123,92351.0,92350.0,0.3521815]
[1745487996638,0.01126123,92351.0,92350.0,0.3521815]
[1745487996932,0.01326123,92351.0,92350.0,0.7114655]